fUSD/lending_fUSD_20260115
["ID","MTS","AMOUNT","RATE_DAILY","PERIOD"]
[402065067,1768503073718,-500.0,0.00036164,10]
[402065068,1768503073728,-500.0,0.00036164,10]
[402065069,1768503073738,-922.04,0.00036164,10]
[402065070,1768503073748,-500.0,0.00036164,10]
[402065071,1768503073758,-500.0,0.00036164,10]
[402065072,1768503073768,-500.0,0.00036164,10]
[402065073,1768503073780,-1147.96,0.00036164,10]
[402065074,1768503073791,-500.0,0.00036164,10]
[402065075,1768503073800,-500.0,0.00036164,10]
[402065076,1768503073810,-500.0,0.00036164,10]
[402065077,1768503073820,-649.81,0.00036164,10]
[402065078,1768503073830,-500.0,0.00036164,10]
[402065079,1768503073839,-500.0,0.00036164,10]
[402065080,1768503073849,-500.0,0.00036164,10]
[402065081,1768503073859,-612.4,0.00036164,10]
[402065082,1768503073868,-500.0,0.00036164,10]
[402065083,1768503073878,-500.0,0.00036164,10]
[402065084,1768503073887,-500.0,0.00036164,10]
[402065085,1768503073896,-636.55,0.00036164,10]
[402065086,1768503073906,-500.0,0.00036164,10]
[402065087,1768503073916,-500.0,0.00036164,10]
[402065088,1768503073926,-500.0,0.00036164,10]
[402065089,1768503073936,-569.92,0.00036164,10]
[402065090,1768503073945,-500.0,0.00036164,10]
[402065091,1768503073956,-500.0,0.00036164,10]
[402065092,1768503073966,-500.0,0.00036164,10]
[402065093,1768503073976,-500.0,0.00036164,10]
[402065094,1768503073985,-500.0,0.00036164,10]
[402065095,1768503073995,-500.0,0.00036164,10]
[402065096,1768503074004,-500.0,0.00036164,10]
[402065097,1768503074014,-820.49,0.00036164,10]
[402065098,1768503074024,-743.16,0.00036164,10]
[402065099,1768503074034,-500.0,0.00036164,10]
[402065100,1768503074043,-882.15,0.00036164,10]
[402065101,1768503074053,-500.0,0.00036164,10]
[402065102,1768503074062,-500.0,0.00036164,10]
[402065103,1768503074072,-500.0,0.00036164,10]
[402065104,1768503074081,-820.87,0.00036164,10]
[402065105,1768503074091,-662.97,0.00036164,10]
[402065106,1768503074100,-500.0,0.00036164,10]
[402065107,1768503074109,-500.0,0.00036164,10]
[402065108,1768503074119,-1529.82,0.00036164,10]
[402065109,1768503074128,-500.0,0.00036164,10]
[402065110,1768503074138,-692.49,0.00036164,10]
[402065111,1768503074147,-500.0,0.00036164,10]
[402065112,1768503074158,-717.99,0.00036164,10]
[402065113,1768503074168,-500.0,0.00036164,10]
[402065114,1768503074178,-500.0,0.00036164,10]
[402065115,1768503074187,-504.7,0.00036164,10]
[402065116,1768503074196,-500.0,0.00036164,10]
[402065117,1768503074206,-3901.35,0.00036164,10]
[402065118,1768503074216,-500.0,0.00036164,10]
[402065119,1768503074226,-570.42,0.00036164,10]
[402065120,1768503074235,-500.0,0.00036164,10]
[402065121,1768503074245,-500.0,0.00036164,10]
[402065122,1768503074254,-500.0,0.00036164,10]
[402065123,1768503074264,-675.06,0.00036164,10]
[402065124,1768503074274,-500.0,0.00036164,10]
[402065125,1768503074283,-500.0,0.00036164,10]
[402065126,1768503074293,-587.93,0.00036164,10]
[402065127,1768503074302,-1171.44,0.00036164,10]
[402065128,1768503074311,-500.0,0.00036164,10]
[402065129,1768503074321,-650.76,0.00036164,10]
[402065130,1768503074331,-500.0,0.00036164,10]
[402065131,1768503074340,-563.08,0.00036164,10]
[402065132,1768503074349,-500.0,0.00036164,10]
[402065133,1768503074359,-599.77,0.00036164,10]
[402065134,1768503074368,-500.0,0.00036164,10]
[402065135,1768503074377,-954.19,0.00036164,10]
[402065136,1768503074387,-500.0,0.00036164,10]
[402065137,1768503074396,-500.0,0.00036164,10]
[402065138,1768503074405,-660.49,0.00036164,10]
[402065139,1768503074415,-500.0,0.00036164,10]
[402065140,1768503074424,-918.36,0.00036164,10]
[402065141,1768503074434,-617.54,0.00036164,10]
[402065142,1768503074443,-500.0,0.00036164,10]
[402065143,1768503074452,-3297.39,0.00036164,10]
[402065144,1768503074461,-604.91,0.00036164,10]
[402065145,1768503074471,-579.89,0.00036164,10]
[402065146,1768503074480,-500.0,0.00036164,10]
[402065147,1768503074489,-500.0,0.00036164,10]
[402065148,1768503074498,-500.0,0.00036164,10]
[402065149,1768503074507,-535.87,0.00036164,10]
[402065150,1768503074517,-500.0,0.00036164,10]
[402065151,1768503074527,-591.24,0.00036164,10]
[402065152,1768503074536,-500.0,0.00036164,10]
[402065153,1768503074545,-638.9,0.00036164,10]
[402065154,1768503074555,-882.6,0.00036164,10]
[402065155,1768503074564,-664.74,0.00036164,10]
[402065156,1768503074573,-500.0,0.00036164,10]
[402065157,1768503074583,-505.93,0.00036164,10]
[402065158,1768503074593,-500.0,0.00036164,10]
[402065159,1768503074602,-603.38,0.00036164,10]
[402065160,1768503074611,-1826.24,0.00036164,10]
[402065161,1768503074621,-1656.18,0.00036164,10]
[402065162,1768503074630,-609.06,0.00036164,10]
[402065163,1768503074640,-500.0,0.00036164,10]
[402065164,1768503074649,-500.0,0.00036164,120]
[402065165,1768503074659,-500.0,0.00036164,10]
[402065166,1768503074668,-583.18636728,0.00036164,10]
[402065167,1768503074678,-500.0,0.00036164,10]
[402065168,1768503074688,-500.0,0.00036164,10]
[402065169,1768503074698,-1331.68,0.00036164,10]
[402065170,1768503074708,-500.0,0.00036164,10]
[402065171,1768503074719,-500.0,0.00036164,10]
[402065172,1768503074728,-500.0,0.00036164,10]
[402065173,1768503074737,-500.0,0.00036164,10]
[402065174,1768503074747,-500.0,0.00036164,10]
[402065175,1768503074756,-500.0,0.00036164,10]
[402065176,1768503074766,-500.0,0.00036164,10]
[402065177,1768503074777,-679.71,0.00036164,10]
[402065178,1768503074787,-500.0,0.00036164,10]
[402065179,1768503074796,-500.0,0.00036164,10]
[402065180,1768503074806,-651.94,0.00036164,10]
[402065181,1768503074816,-500.0,0.00036164,10]
[402065182,1768503074825,-529.12,0.00036164,10]
[402065183,1768503074835,-1257.61,0.00036164,10]
[402065184,1768503074844,-812.99,0.00036164,10]
[402065185,1768503074855,-500.0,0.00036164,10]
[402065186,1768503074865,-659.28,0.00036164,10]
[402065187,1768503074874,-500.0,0.00036164,10]
[402065188,1768503074884,-500.0,0.00036164,10]
[402065189,1768503074893,-574.37,0.00036164,10]
[402065190,1768503074902,-500.0,0.00036164,10]
[402065191,1768503074912,-500.0,0.00036164,10]
[402065192,1768503074921,-792.76,0.00036164,10]
[402065193,1768503074931,-2463.33,0.00036164,10]
[402065194,1768503074940,-500.0,0.00036164,10]
[402065195,1768503074949,-500.0,0.00036164,10]
[402065196,1768503074958,-500.0,0.00036164,10]
[402065197,1768503074967,-500.0,0.00036164,10]
[402065198,1768503074976,-500.0,0.00036164,10]
[402065199,1768503074985,-500.0,0.00036164,10]
[402065200,1768503074994,-844.97,0.00036164,10]
[402065201,1768503075004,-721.87,0.00036164,10]
[402065202,1768503075013,-727.82,0.00036164,10]
[402065203,1768503075023,-956.35,0.00036164,10]
[402065204,1768503075032,-641.12,0.00036164,10]
[402065205,1768503075042,-500.0,0.00036164,10]
[402065206,1768503075051,-569.34,0.00036164,10]
[402065207,1768503075061,-200.0,0.00036164,120]
[402065208,1768503075071,-500.0,0.00036164,10]
[402065209,1768503075081,-735.15,0.00036164,10]
[402065210,1768503075091,-500.0,0.00036164,10]
[402065211,1768503075100,-509.26254256,0.00036164,10]
[402065212,1768503075110,-500.0,0.00036164,10]
[402065213,1768503075119,-947.56,0.00036164,10]
[402065214,1768503075129,-816.34,0.00036164,10]
[402065215,1768503075138,-868.84,0.00036164,10]
[402065216,1768503075147,-447.37643947,0.00036164,10]
[402065217,1768503075157,-500.0,0.00036164,10]
[402065218,1768503075167,-500.0,0.00036164,10]
[402065219,1768503075176,-761.47,0.00036164,10]
[402065220,1768503075185,-500.0,0.00036164,10]
[402065221,1768503075195,-500.0,0.00036164,10]
[402065222,1768503075204,-1139.64,0.00036164,10]
[402065223,1768503075214,-500.0,0.00036164,10]
[402065224,1768503075223,-500.0,0.00036164,10]
[402065225,1768503075232,-651.59,0.00036164,10]
[402065226,1768503075242,-506.47,0.00036164,10]
[402065227,1768503075251,-1079.44,0.00036164,10]
[402065228,1768503075260,-500.0,0.00036164,10]
[402065229,1768503075273,-500.0,0.00036164,10]
[402065230,1768503075283,-500.0,0.00036164,10]
[402065231,1768503075292,-1103.44,0.00036164,10]
[402065232,1768503075302,-500.0,0.00036164,10]
[402065233,1768503075312,-714.33,0.00036164,10]
[402065234,1768503075321,-534.34,0.00036164,10]
[402065235,1768503075331,-500.0,0.00036164,10]
[402065236,1768503075340,-500.0,0.00036164,10]
[402065237,1768503075350,-500.0,0.00036164,10]
[402065238,1768503075359,-500.0,0.00036164,10]
[402065239,1768503075369,-500.0,0.00036164,10]
[402065240,1768503075382,-500.0,0.00036164,10]
[402065241,1768503075391,-761.11,0.00036164,10]
[402065242,1768503075400,-3579.88,0.00036164,10]
[402065243,1768503075410,-1270.78,0.00036164,10]
[402065244,1768503075419,-848.31,0.00036164,10]
[402065245,1768503075428,-988.46,0.00036164,10]
[402065246,1768503075438,-500.0,0.00036164,10]
[402065247,1768503075448,-500.0,0.00036164,10]
[402065248,1768503075458,-500.0,0.00036164,10]
[402065249,1768503075467,-503.00758684,0.00036164,10]
[402065250,1768503075477,-500.0,0.00036164,10]
[402065251,1768503075486,-1039.68,0.00036164,10]
[402065252,1768503075495,-194.37654138,0.00036164,10]
[402065253,1768503075504,-500.0,0.00036164,10]
[402065254,1768503075514,-845.57,0.00036164,10]
[402065255,1768503075523,-500.0,0.00036164,10]
[402065256,1768503075532,-500.0,0.00036164,10]
[402065257,1768503075541,-1299.34,0.00036164,10]
[402065258,1768503075550,-814.08,0.00036164,10]
[402065259,1768503075562,-775.84,0.00036164,10]
[402065260,1768503075581,-500.0,0.00036164,10]
[402065261,1768503075600,-917.95,0.00036164,10]
[402065262,1768503075621,-500.0,0.00036164,10]
[402065263,1768503075638,-681.79,0.00036164,10]
[402065264,1768503075647,-690.07,0.00036164,10]
[402065265,1768503075656,-1020.43,0.00036164,10]
[402065266,1768503075666,-500.0,0.00036164,10]
[402065267,1768503075676,-500.0,0.00036164,10]
[402065268,1768503075686,-1303.25,0.00036164,10]
[402065269,1768503075695,-2164.76,0.00036164,10]
[402065270,1768503075704,-500.0,0.00036164,10]
[402065271,1768503075714,-779.73,0.00036164,10]
[402065272,1768503075724,-277.18173296,0.00036164,10]
[402065273,1768503075734,-500.0,0.00036164,10]
[402065274,1768503075744,-690.15,0.00036164,10]
[402065275,1768503075754,-500.0,0.00036164,10]
[402065276,1768503075764,-587.63,0.00036164,10]
[402065277,1768503075776,-336.362016,0.00036164,10]
[402065278,1768503075786,-500.0,0.00036164,10]
[402065279,1768503075795,-500.0,0.00036164,10]
[402065280,1768503075805,-500.0,0.00036164,10]
[402065281,1768503075814,-500.0,0.00036164,10]
[402065282,1768503075824,-2598.8,0.00036164,10]
[402065283,1768503075834,-568.25,0.00036164,10]
[402065284,1768503075844,-158.15436872,0.00036164,10]
[402065285,1768503075858,-500.0,0.00036164,10]
[402065286,1768503075868,-500.0,0.00036164,10]
[402065287,1768503075879,-889.29,0.00036164,10]
[402065288,1768503075888,-500.0,0.00036164,10]
[402065289,1768503075898,-780.18,0.00036164,10]
[402065290,1768503075907,-1154.26,0.00036164,10]
[402065291,1768503075918,-816.3,0.00036164,10]
[402065292,1768503075928,-500.0,0.00036164,10]
[402065293,1768503075938,-3771.07,0.00036164,10]
[402065294,1768503075948,-500.0,0.00036164,10]
[402065295,1768503075957,-1378.93,0.00036164,10]
[402065296,1768503075966,-500.0,0.00036164,10]
[402065297,1768503075975,-500.0,0.00036164,10]
[402065298,1768503075985,-917.89,0.00036164,10]
[402065299,1768503075994,-500.0,0.00036164,10]
[402065300,1768503076003,-500.0,0.00036164,10]
[402065301,1768503076012,-654.06,0.00036164,10]
[402065302,1768503076022,-782.23,0.00036164,10]
[402065303,1768503076032,-500.0,0.00036164,10]
[402065304,1768503076041,-630.72620401,0.00036164,10]
[402065305,1768503076050,-500.0,0.00036164,10]
[402065306,1768503076059,-500.0,0.00036164,10]
[402065307,1768503076068,-237.36021803,0.00036164,10]
[402065308,1768503076077,-653.6,0.00036164,10]
[402065309,1768503076087,-500.0,0.00036164,10]
[402065310,1768503076097,-566.14,0.00036164,10]
[402065311,1768503076108,-767.47,0.00036164,10]
[402065312,1768503076117,-917.55,0.00036164,10]
[402065313,1768503076127,-500.0,0.00036164,10]
[402065314,1768503076136,-1216.62,0.00036164,10]
[402065315,1768503076147,-701.02,0.00036164,10]
[402065316,1768503076156,-1006.43,0.00036164,10]
[402065317,1768503076165,-500.0,0.00036164,10]
[402065318,1768503076174,-615.31,0.00036164,10]
[402065319,1768503076183,-534.06,0.00036164,10]
[402065320,1768503076192,-933.99,0.00036164,10]
[402065321,1768503076202,-821.62,0.00036164,10]
[402065322,1768503076211,-2075.18,0.00036164,10]
[402065323,1768503076220,-500.0,0.00036164,10]
[402065324,1768503076229,-500.0,0.00036164,10]
[402065325,1768503076238,-500.0,0.00036164,10]
[402065326,1768503076247,-500.0,0.00036164,10]
[402065327,1768503076256,-500.0,0.00036164,10]
[402065328,1768503076266,-500.0,0.00036164,10]
[402065329,1768503076275,-500.0,0.00036164,10]
[402065330,1768503076284,-1361.57,0.00036164,10]
[402065331,1768503076520,-593.78,0.00036164,10]
[402065332,1768503076552,-500.0,0.00036164,10]
[402065333,1768503076561,-500.0,0.00036164,10]
[402065334,1768503076570,-818.34,0.00036164,10]
[402065335,1768503076579,-769.22,0.00036164,10]
[402065336,1768503076589,-500.0,0.00036164,10]
[402065337,1768503076598,-500.0,0.00036164,10]
[402065338,1768503076608,-500.0,0.00036164,10]
[402065339,1768503076618,-1227.45,0.00036164,10]
[402065340,1768503076629,-500.0,0.00036164,10]
[402065341,1768503076638,-513.79,0.00036164,10]
[402065342,1768503076647,-971.54,0.00036164,10]
[402065343,1768503076657,-500.0,0.00036164,10]
[402065344,1768503076666,-500.0,0.00036164,10]
[402065345,1768503076675,-500.0,0.00036164,10]
[402065346,1768503076685,-500.0,0.00036164,10]
[402065347,1768503076695,-500.0,0.00036164,10]
[402065348,1768503076704,-500.0,0.00036164,10]
[402065349,1768503076714,-524.52,0.00036164,10]
[402065350,1768503076723,-615.02,0.00036164,10]
[402065351,1768503076732,-500.0,0.00036164,10]
[402065352,1768503076742,-521.83,0.00036164,10]
[402065353,1768503076752,-211.10212418,0.00036164,10]
[402065354,1768503076762,-300.0,0.00036164,2]
[402065355,1768503076771,-500.0,0.00036164,10]
[402065356,1768503076789,-638.24406187,0.00036164,10]
[402065357,1768503076807,-1933.97,0.00036164,10]
[402065358,1768503076816,-1075.65,0.00036164,10]
[402065359,1768503076826,-1367.5,0.00036164,10]
[402065360,1768503076836,-551.33,0.00036164,10]
[402065361,1768503076846,-500.0,0.00036164,10]
[402065362,1768503076856,-500.0,0.00036164,10]
[402065363,1768503076865,-500.0,0.00036164,10]
[402065364,1768503076875,-500.0,0.00036164,10]
[402065365,1768503076886,-500.0,0.00036164,10]
[402065366,1768503076897,-500.0,0.00036164,10]
[402065367,1768503076906,-641.61,0.00036164,10]
[402065368,1768503076916,-500.0,0.00036164,10]
[402065369,1768503076925,-542.65645714,0.00036164,10]
[402065370,1768503076934,-911.57,0.00036164,10]
[402065371,1768503076944,-500.0,0.00036164,10]
[402065372,1768503076954,-739.18,0.00036164,10]
[402065373,1768503076963,-639.28,0.00036164,10]
[402065374,1768503076972,-500.0,0.00036164,10]
[402065375,1768503076982,-645.12,0.00036164,10]
[402065376,1768503076992,-500.0,0.00036164,10]
[402065377,1768503077001,-1489.76,0.00036164,10]
[402065378,1768503077011,-828.51,0.00036164,10]
[402065379,1768503077020,-500.0,0.00036164,10]
[402065380,1768503077030,-881.04,0.00036164,10]
[402065381,1768503077039,-680.45,0.00036164,10]
[402065382,1768503077049,-500.0,0.00036164,10]
[402065383,1768503077058,-500.0,0.00036164,10]
[402065384,1768503077067,-500.0,0.00036164,10]
[402065385,1768503077077,-1176.55,0.00036164,10]
[402065386,1768503077087,-500.0,0.00036164,10]
[402065387,1768503077097,-500.0,0.00036164,10]
[402065388,1768503077110,-500.0,0.00036164,10]
[402065389,1768503077119,-717.66,0.00036164,10]
[402065390,1768503077129,-500.0,0.00036164,10]
[402065391,1768503077139,-500.0,0.00036164,10]
[402065392,1768503077149,-500.0,0.00036164,10]
[402065393,1768503077159,-500.0,0.00036164,10]
[402065394,1768503077168,-705.8,0.00036164,10]
[402065395,1768503077177,-500.0,0.00036164,10]
[402065396,1768503077187,-500.0,0.00036164,10]
[402065397,1768503077198,-1153.2,0.00036164,10]
[402065398,1768503077208,-500.0,0.00036164,10]
[402065399,1768503077218,-858.9,0.00036164,10]
[402065400,1768503077227,-647.82,0.00036164,10]
[402065401,1768503077237,-599.54,0.00036164,10]
[402065402,1768503077246,-1315.36276091,0.00036164,10]
[402065403,1768503077255,-500.0,0.00036164,10]
[402065404,1768503077264,-500.0,0.00036164,10]
[402065405,1768503077273,-500.0,0.00036164,10]
[402065406,1768503077284,-816.79,0.00036164,10]
[402065407,1768503077294,-919.98,0.00036164,10]
[402065408,1768503077303,-590.19,0.00036164,10]
[402065409,1768503077312,-500.0,0.00036164,10]
[402065410,1768503077322,-718.19,0.00036164,10]
[402065411,1768503077331,-915.54,0.00036164,10]
[402065412,1768503077341,-500.0,0.00036164,10]
[402065413,1768503077351,-545.36,0.00036164,10]
[402065414,1768503077362,-500.0,0.00036164,10]
[402065415,1768503077371,-500.0,0.00036164,10]
[402065416,1768503077381,-500.0,0.00036164,10]
[402065417,1768503077390,-500.0,0.00036164,10]
[402065418,1768503077400,-565.52,0.00036164,10]
[402065419,1768503077410,-500.0,0.00036164,10]
[402065420,1768503077420,-500.0,0.00036164,10]
[402065421,1768503077429,-789.62,0.00036164,10]
[402065422,1768503077439,-500.0,0.00036164,10]
[402065423,1768503077448,-1360.5,0.00036164,10]
[402065424,1768503077457,-500.0,0.00036164,10]
[402065425,1768503077467,-500.0,0.00036164,10]
[402065426,1768503077476,-541.89,0.00036164,10]
[402065427,1768503077485,-871.27,0.00036164,10]
[402065428,1768503077495,-500.0,0.00036164,10]
[402065429,1768503077505,-1121.18,0.00036164,10]
[402065430,1768503077514,-3236.58,0.00036164,10]
[402065431,1768503077524,-500.0,0.00036164,10]
[402065432,1768503077534,-500.0,0.00036164,10]
[402065433,1768503077544,-1659.86,0.00036164,10]
[402065434,1768503077555,-500.0,0.00036164,10]
[402065435,1768503077565,-518.84,0.00036164,10]
[402065436,1768503077575,-600.0,0.00036164,2]
[402065437,1768503077585,-1000.0,0.00036176,7]
[402065438,1768503077595,-292.5367075,0.00036193,2]
[402065439,1768503077607,-1000.0,0.00036217,7]
[402065440,1768503077617,-150.0,0.00036219,7]
[402065441,1768503077627,-150.0,0.00036222,7]
[402065442,1768503077636,-1000.0,0.00036287,7]
[402065443,1768503077646,-1000.0,0.0003629,7]
[402065444,1768503077656,-150.0,0.00036304,7]
[402065445,1768503077666,-1000.0,0.00036313,7]
[402065446,1768503077675,-150.0,0.00036316,2]
[402065447,1768503077685,-1000.0,0.00036335,7]
[402065448,1768503077695,-207.36922819,0.00036338,2]
[402065449,1768503077704,-2050.27162086,0.00036338,2]
[402065450,1768503077714,-270.13259969,0.00036338,2]
[402065451,1768503077723,-1000.0,0.0003634,7]
[402065452,1768503077733,-1000.0,0.00036343,7]
[402065453,1768503077742,-1000.0,0.00036349,7]
[402065454,1768503077752,-1000.0,0.0003636,7]
[402065455,1768503077761,-1000.0,0.00036396,7]
[402065456,1768503077775,-150.0,0.00036398,2]
[402065457,1768503077790,-502.97341376,0.00036402,31]
[402065458,1768503077801,-1000.0,0.00036402,7]
[402065459,1768503077811,-1000.0,0.00036411,7]
[402065460,1768503077822,-150.0,0.00036433,7]
[402065461,1768503077833,-786.12,0.00036437,10]
[402065462,1768503077843,-4152.11,0.00036437,10]
[402065463,1768503077855,-150.0,0.00036437,2]
[402065464,1768503077865,-1000.0,0.00036438,10]
[402065465,1768503077876,-1000.0,0.00036438,10]
[402065466,1768503077887,-1000.0,0.00036438,10]
[402065467,1768503077897,-1000.0,0.00036438,10]
[402065468,1768503077907,-1000.0,0.00036438,10]
[402065469,1768503077918,-1000.0,0.00036438,10]
[402065470,1768503077928,-1000.0,0.00036438,10]
[402065471,1768503077938,-1000.0,0.00036438,10]
[402065472,1768503077947,-1263.0,0.00036438,7]
[402065473,1768503077956,-1263.0,0.00036438,7]
[402065474,1768503077966,-522.5541042,0.00036438,10]
[402065475,1768503077976,-500.0,0.00036438,10]
[402065476,1768503077985,-500.0,0.00036438,10]
[402065477,1768503077994,-500.0,0.00036438,10]
[402065478,1768503078004,-500.0,0.00036438,10]
[402065479,1768503078013,-500.0,0.00036438,10]
[402065480,1768503078022,-500.0,0.00036438,10]
[402065481,1768503078032,-381.29783385,0.00036438,10]
[402065482,1768503078041,-572.36,0.00036438,10]
[402065483,1768503078050,-500.0,0.00036438,10]
[402065484,1768503078060,-500.0,0.00036438,10]
[402065485,1768503078070,-500.0,0.00036438,10]
[402065486,1768503078079,-500.0,0.00036438,10]
[402065487,1768503078089,-500.0,0.00036438,10]
[402065488,1768503078099,-500.0,0.00036438,10]
[402065489,1768503078109,-500.0,0.00036438,10]
[402065490,1768503078119,-500.0,0.00036438,10]
[402065491,1768503078128,-500.0,0.00036438,10]
[402065492,1768503078138,-552.2,0.00036438,10]
[402065493,1768503078147,-500.0,0.00036438,10]
[402065494,1768503078156,-500.0,0.00036438,10]
[402065495,1768503078165,-500.0,0.00036438,10]
[402065496,1768503078175,-990.64,0.00036438,10]
[402065497,1768503078184,-378.43,0.00036438,10]
[402065498,1768503078193,-500.0,0.00036438,10]
[402065499,1768503078206,-500.0,0.00036438,10]
[402065500,1768503078216,-655.6,0.00036438,10]
[402065501,1768503078225,-791.73,0.00036438,10]
[402065502,1768503078234,-500.0,0.00036438,10]
[402065503,1768503078244,-500.0,0.00036438,10]
[402065504,1768503078253,-660.77,0.00036438,10]
[402065505,1768503078263,-608.52,0.00036438,10]
[402065506,1768503078272,-524.38,0.00036438,10]
[402065507,1768503078282,-500.0,0.00036438,10]
[402065508,1768503078291,-500.0,0.00036438,10]
[402065509,1768503078300,-500.0,0.00036438,10]
[402065510,1768503078310,-500.0,0.00036438,10]
[402065511,1768503078319,-500.0,0.00036438,10]
[402065512,1768503078329,-500.0,0.00036438,10]
[402065513,1768503078339,-769.29,0.00036438,10]
[402065514,1768503078348,-500.0,0.00036438,10]
[402065515,1768503078358,-500.0,0.00036438,10]
[402065516,1768503078368,-500.0,0.00036438,10]
[402065517,1768503078377,-961.15,0.00036438,10]
[402065518,1768503078386,-655.4,0.00036438,10]
[402065519,1768503078395,-500.0,0.00036438,10]
[402065520,1768503078406,-500.0,0.00036438,10]
[402065521,1768503078416,-500.0,0.00036438,10]
[402065522,1768503078426,-500.0,0.00036438,10]
[402065523,1768503078436,-500.0,0.00036438,10]
[402065524,1768503078446,-500.0,0.00036438,10]
[402065525,1768503078455,-500.0,0.00036438,10]
[402065526,1768503078464,-292.12190545,0.00036438,10]
[402065527,1768503078474,-680.38,0.00036438,10]
[402065528,1768503078484,-500.0,0.00036438,10]
[402065529,1768503078493,-500.0,0.00036438,10]
[402065530,1768503078503,-621.45,0.00036438,10]
[402065531,1768503078512,-500.0,0.00036438,10]
[402065532,1768503078522,-500.0,0.00036438,10]
[402065533,1768503078532,-630.08,0.00036438,10]
[402065534,1768503078542,-500.0,0.00036438,10]
[402065535,1768503078552,-500.0,0.00036438,10]
[402065536,1768503078562,-500.0,0.00036438,10]
[402065537,1768503078572,-500.0,0.00036438,10]
[402065538,1768503078582,-756.1,0.00036438,10]
[402065539,1768503078592,-500.0,0.00036438,10]
[402065540,1768503078603,-500.0,0.00036438,10]
[402065541,1768503078612,-500.0,0.00036438,10]
[402065542,1768503078621,-661.96,0.00036438,10]
[402065543,1768503078631,-506.68,0.00036438,10]
[402065544,1768503078640,-500.0,0.00036438,10]
[402065545,1768503078650,-500.0,0.00036438,10]
[402065546,1768503078660,-500.0,0.00036438,10]
[402065547,1768503078670,-500.0,0.00036438,10]
[402065548,1768503078679,-500.0,0.00036438,10]
[402065549,1768503078689,-500.0,0.00036438,10]
[402065550,1768503078699,-500.0,0.00036438,10]
[402065551,1768503078709,-500.0,0.00036438,10]
[402065552,1768503078718,-500.0,0.00036438,10]
[402065553,1768503078728,-500.0,0.00036438,10]
[402065554,1768503078738,-500.0,0.00036438,10]
[402065555,1768503078748,-726.52,0.00036438,10]
[402065556,1768503078757,-671.56,0.00036438,10]
[402065557,1768503078767,-500.0,0.00036438,10]
[402065558,1768503078778,-500.0,0.00036438,10]
[402065559,1768503078787,-512.96,0.00036438,10]
[402065560,1768503078797,-509.96,0.00036438,10]
[402065561,1768503078807,-500.0,0.00036438,10]
[402065562,1768503078816,-511.0,0.00036438,10]
[402065563,1768503078827,-500.0,0.00036438,10]
[402065564,1768503078836,-500.0,0.00036438,10]
[402065565,1768503078846,-544.3,0.00036438,10]
[402065566,1768503078855,-500.0,0.00036438,10]